[Event "Titled Tuesday Blitz April 11 Early 2023"]
[White "Amilal Munkhdalai"]
[Black "Manon-og, Ramon Jr."]
[WhiteFideId "4903250"]
[BlackFideId "5200776"]
[WhiteElo "2293"]
[BlackElo "2400"]
[Result "1-0"]
[Round "02"]
[TimeControl "180+2"]
[Date "2023.04.11"]
[WhiteClock "0:01:14"]
[BlackClock "0:00:16"]

1. e4 {[%clk 0:03:00]}  c5 {[%clk 0:02:59]} 2. Nf3 {[%clk 0:03:01]}  d6 {[%clk 0:03:00]} 3. d4 {[%clk 0:03:01]}  cxd4 {[%clk 0:03:00]} 4. Nxd4 {[%clk 0:03:02]}  Nf6 {[%clk 0:03:01]} 5. f3 {[%clk 0:03:02]}  a6 {[%clk 0:03:01]} 6. c4 {[%clk 0:03:02]}  h5 {[%clk 0:03:00]} 7. Nc3 {[%clk 0:03:02]}  e6 {[%clk 0:03:01]} 8. Be3 {[%clk 0:03:02]}  g6 {[%clk 0:03:01]} 9. Qd2 {[%clk 0:03:03]}  Bg7 {[%clk 0:03:01]} 10. Be2 {[%clk 0:03:03]}  O-O {[%clk 0:03:01]} 11. O-O {[%clk 0:03:03]}  Nc6 {[%clk 0:03:01]} 12. Rfd1 {[%clk 0:03:03]}  Ne8 {[%clk 0:02:59]} 13. Bf1 {[%clk 0:03:02]}  Bd7 {[%clk 0:02:59]} 14. Rac1 {[%clk 0:03:00]}  Rc8 {[%clk 0:02:58]} 15. Qf2 {[%clk 0:02:54]}  Ne5 {[%clk 0:02:58]} 16. b3 {[%clk 0:02:54]}  Qa5 {[%clk 0:02:48]} 17. Qd2 {[%clk 0:02:30]}  Qc7 {[%clk 0:02:44]} 18. Nce2 {[%clk 0:02:20]}  Qd8 {[%clk 0:02:37]} 19. Qb4 {[%clk 0:02:10]}  Qc7 {[%clk 0:02:32]} 20. Nc2 {[%clk 0:02:09]}  Nc6 {[%clk 0:02:26]} 21. Qd2 {[%clk 0:02:08]}  Bb2 {[%clk 0:02:26]} 22. Rb1 {[%clk 0:02:07]}  Bg7 {[%clk 0:02:26]} 23. Ncd4 {[%clk 0:01:59]}  Nxd4 {[%clk 0:02:24]} 24. Bxd4 {[%clk 0:01:58]}  b5 {[%clk 0:02:18]} 25. Rbc1 {[%clk 0:01:53]}  Qb7 {[%clk 0:02:14]} 26. c5 {[%clk 0:01:50]}  Qb8 {[%clk 0:01:30]} 27. Bxg7 {[%clk 0:01:47]}  Kxg7 {[%clk 0:01:28]} 28. cxd6 {[%clk 0:01:46]}  Rxc1 {[%clk 0:01:28]} 29. Rxc1 {[%clk 0:01:46]}  Nf6 {[%clk 0:01:11]} 30. Qd4 {[%clk 0:01:43]}  Rc8 {[%clk 0:01:08]} 31. Rxc8 {[%clk 0:01:42]}  Qxc8 {[%clk 0:01:09]} 32. Nf4 {[%clk 0:01:38]}  Qc1 {[%clk 0:01:04]} 33. Nd3 {[%clk 0:01:38]}  Qd2 {[%clk 0:01:02]} 34. a3 {[%clk 0:01:25]}  h4 {[%clk 0:01:00]} 35. h3 {[%clk 0:01:20]}  a5 {[%clk 0:00:47]} 36. b4 {[%clk 0:01:18]}  a4 {[%clk 0:00:46]} 37. Qe5 {[%clk 0:01:18]}  Qa2 {[%clk 0:00:32]} 38. Nc5 {[%clk 0:01:16]}  Bc6 {[%clk 0:00:22]} 39. Qd4 {[%clk 0:01:14]}  Qxa3 {[%clk 0:00:18]} 40. d7 {[%clk 0:01:14]}  Bxd7 {[%clk 0:00:16]} 41. Nxd7 {[%clk 0:01:14]} 1-0


[Site "https://www.chess.com"]

[Event "Titled Tuesday Blitz April 11 Early 2023"]
[White "Harriott, Tyrell"]
[Black "Riff, Vincent"]
[WhiteFideId "2086484"]
[BlackFideId "617776"]
[WhiteElo "2107"]
[BlackElo "2369"]
[Result "0-1"]
[Round "02"]
[TimeControl "180+2"]
[Date "2023.04.11"]
[WhiteClock "0:00:01"]
[BlackClock "0:00:12"]

1. d4 {[%clk 0:03:00]}  d5 {[%clk 0:02:59]} 2. e3 {[%clk 0:02:58]}  Nf6 {[%clk 0:02:59]} 3. Bd3 {[%clk 0:02:58]}  Bg4 {[%clk 0:02:53]} 4. Ne2 {[%clk 0:02:57]}  Nbd7 {[%clk 0:02:51]} 5. f4 {[%clk 0:02:57]}  c5 {[%clk 0:02:49]} 6. c3 {[%clk 0:02:57]}  Ne4 {[%clk 0:02:42]} 7. Bxe4 {[%clk 0:02:48]}  dxe4 {[%clk 0:02:41]} 8. Nd2 {[%clk 0:02:48]}  Nf6 {[%clk 0:02:40]} 9. O-O {[%clk 0:02:48]}  cxd4 {[%clk 0:02:38]} 10. exd4 {[%clk 0:02:46]}  Qd5 {[%clk 0:02:26]} 11. Qe1 {[%clk 0:02:44]}  e6 {[%clk 0:02:22]} 12. Ng3 {[%clk 0:02:43]}  Bf5 {[%clk 0:02:20]} 13. Qe2 {[%clk 0:02:41]}  Bd6 {[%clk 0:02:17]} 14. Nc4 {[%clk 0:02:35]}  O-O {[%clk 0:02:14]} 15. Ne3 {[%clk 0:02:34]}  Qa5 {[%clk 0:02:14]} 16. Nc4 {[%clk 0:02:25]}  Qa6 {[%clk 0:02:12]} 17. Nxd6 {[%clk 0:02:15]}  Qxd6 {[%clk 0:02:10]} 18. Be3 {[%clk 0:02:11]}  a6 {[%clk 0:02:04]} 19. Rac1 {[%clk 0:02:10]}  b5 {[%clk 0:02:04]} 20. Rfd1 {[%clk 0:02:09]}  Rac8 {[%clk 0:02:03]} 21. b3 {[%clk 0:02:09]}  Bg4 {[%clk 0:02:00]} 22. Qd2 {[%clk 0:02:04]}  Bxd1 {[%clk 0:01:59]} 23. Rxd1 {[%clk 0:02:05]}  Qc6 {[%clk 0:01:56]} 24. Rc1 {[%clk 0:02:03]}  Nd5 {[%clk 0:01:56]} 25. c4 {[%clk 0:02:01]}  Nxe3 {[%clk 0:01:56]} 26. Qxe3 {[%clk 0:02:02]}  f5 {[%clk 0:01:56]} 27. c5 {[%clk 0:02:01]}  Rfd8 {[%clk 0:01:54]} 28. Ne2 {[%clk 0:02:01]}  b4 {[%clk 0:01:52]} 29. Rc4 {[%clk 0:01:59]}  a5 {[%clk 0:01:50]} 30. h3 {[%clk 0:01:58]}  Qb5 {[%clk 0:01:47]} 31. Ng3 {[%clk 0:01:54]}  a4 {[%clk 0:01:47]} 32. Kh2 {[%clk 0:01:53]}  axb3 {[%clk 0:01:47]} 33. axb3 {[%clk 0:01:53]}  Ra8 {[%clk 0:01:38]} 34. Nh5 {[%clk 0:01:48]}  Qe8 {[%clk 0:01:36]} 35. Ng3 {[%clk 0:01:46]}  Ra3 {[%clk 0:01:23]} 36. Rxb4 {[%clk 0:01:46]}  Rb8 {[%clk 0:01:23]} 37. Qc3 {[%clk 0:01:37]}  Ra2 {[%clk 0:01:19]} 38. Rc4 {[%clk 0:01:30]}  Qc6 {[%clk 0:01:17]} 39. Nh5 {[%clk 0:01:25]}  g6 {[%clk 0:01:03]} 40. d5 {[%clk 0:01:15]}  Qc7 {[%clk 0:01:01]} 41. d6 {[%clk 0:01:10]}  Qf7 {[%clk 0:00:55]} 42. Ng3 {[%clk 0:00:53]}  g5 {[%clk 0:00:46]} 43. fxg5 {[%clk 0:00:49]}  f4 {[%clk 0:00:41]} 44. Nxe4 {[%clk 0:00:49]}  Qf5 {[%clk 0:00:38]} 45. c6 {[%clk 0:00:34]}  f3 {[%clk 0:00:38]} 46. Nf6+ {[%clk 0:00:32]}  Kf7 {[%clk 0:00:38]} 47. Rg4 {[%clk 0:00:22]}  fxg2 {[%clk 0:00:33]} 48. Rxg2 {[%clk 0:00:16]}  Qf4+ {[%clk 0:00:32]} 49. Qg3 {[%clk 0:00:16]}  Rxg2+ {[%clk 0:00:30]} 50. Kxg2 {[%clk 0:00:16]}  Qd2+ {[%clk 0:00:26]} 51. Qf2 {[%clk 0:00:16]}  Qxg5+ {[%clk 0:00:27]} 52. Kh2 {[%clk 0:00:14]}  Qe5+ {[%clk 0:00:24]} 53. Kg2 {[%clk 0:00:12]}  Kg7 {[%clk 0:00:10]} 54. c7 {[%clk 0:00:10]}  Rc8 {[%clk 0:00:10]} 55. d7 {[%clk 0:00:09]}  Qg5+ {[%clk 0:00:09]} 56. Ng4 {[%clk 0:00:09]}  Qd5+ {[%clk 0:00:10]} 57. Qf3 {[%clk 0:00:08]}  Qxd7 {[%clk 0:00:10]} 58. Qc3+ {[%clk 0:00:08]}  Kf8 {[%clk 0:00:08]} 59. Qf6+ {[%clk 0:00:07]}  Ke8 {[%clk 0:00:08]} 60. Qh8+ {[%clk 0:00:07]}  Ke7 {[%clk 0:00:08]} 61. Qxh7+ {[%clk 0:00:07]}  Kd6 {[%clk 0:00:09]} 62. Qd3+ {[%clk 0:00:08]}  Kxc7 {[%clk 0:00:09]} 63. Qc4+ {[%clk 0:00:07]}  Kd8 {[%clk 0:00:10]} 64. Qe2 {[%clk 0:00:06]}  Qd5+ {[%clk 0:00:10]} 65. Kh2 {[%clk 0:00:06]}  Rc3 {[%clk 0:00:10]} 66. Qf2 {[%clk 0:00:03]}  Qd6+ {[%clk 0:00:10]} 67. Kg2 {[%clk 0:00:03]}  Qc6+ {[%clk 0:00:11]} 68. Kg1 {[%clk 0:00:02]}  Rc1+ {[%clk 0:00:11]} 69. Kh2 {[%clk 0:00:02]}  Rc2 {[%clk 0:00:12]} 70. Qxc2 {[%clk 0:00:01]}  Qxc2+ {[%clk 0:00:12]} 71. Kg3 {[%clk 0:00:02]}  Qxb3+ {[%clk 0:00:12]} 72. Kh4 {[%clk 0:00:03]}  Ke7 {[%clk 0:00:13]} 73. Kg5 {[%clk 0:00:03]}  Qd5+ {[%clk 0:00:12]} 74. Kh4 {[%clk 0:00:04]}  e5 {[%clk 0:00:12]} 75. Kg3 {[%clk 0:00:03]}  Ke6 {[%clk 0:00:12]} 76. h4 {[%clk 0:00:03]}  Qd3+ {[%clk 0:00:12]} 77. Kg2 {[%clk 0:00:02]}  Kf5 {[%clk 0:00:13]} 78. Nf2 {[%clk 0:00:02]}  Qd5+ {[%clk 0:00:12]} 79. Kg3 {[%clk 0:00:02]}  Qb3+ {[%clk 0:00:12]} 80. Kg2 {[%clk 0:00:02]}  Kf4 {[%clk 0:00:12]} 81. Nh3+ {[%clk 0:00:02]}  Kg4 {[%clk 0:00:13]} 82. Nf2+ {[%clk 0:00:02]}  Kxh4 {[%clk 0:00:14]} 83. Kg1 {[%clk 0:00:02]}  Qe3 {[%clk 0:00:12]} 84. Kg2 {[%clk 0:00:01]}  Qe2 {[%clk 0:00:12]} 85. Kg1 {[%clk 0:00:02]}  Kg3 {[%clk 0:00:12]} 86. Nh1+ {[%clk 0:00:02]}  Kf3 {[%clk 0:00:12]} 87. Ng3 {[%clk 0:00:01]}  Qg2# {[%clk 0:00:12]} 0-1


[Site "https://www.chess.com"]

[Event "Titled Tuesday Blitz April 11 Early 2023"]
[White "Weetik, Vjacheslav"]
[Black "Vivas Zamora, Fabian Ernesto"]
[WhiteFideId "4153472"]
[BlackFideId "3902480"]
[WhiteElo "2469"]
[BlackElo "2262"]
[Result "1-0"]
[Round "02"]
[TimeControl "180+2"]
[Date "2023.04.11"]
[WhiteClock "0:00:16"]
[BlackClock "0:00:02"]

1. d4 {[%clk 0:02:59]}  Nf6 {[%clk 0:02:59]} 2. c4 {[%clk 0:02:59]}  g6 {[%clk 0:02:59]} 3. Nc3 {[%clk 0:02:58]}  d5 {[%clk 0:02:59]} 4. cxd5 {[%clk 0:02:57]}  Nxd5 {[%clk 0:03:00]} 5. e4 {[%clk 0:02:57]}  Nxc3 {[%clk 0:03:00]} 6. bxc3 {[%clk 0:02:58]}  Bg7 {[%clk 0:03:01]} 7. Bg5 {[%clk 0:02:57]}  h6 {[%clk 0:02:53]} 8. Bh4 {[%clk 0:02:55]}  c5 {[%clk 0:02:53]} 9. Rc1 {[%clk 0:02:55]}  Qa5 {[%clk 0:02:35]} 10. Qd2 {[%clk 0:02:53]}  g5 {[%clk 0:01:53]} 11. Bg3 {[%clk 0:02:51]}  cxd4 {[%clk 0:01:53]} 12. cxd4 {[%clk 0:02:50]}  Qxd2+ {[%clk 0:01:53]} 13. Kxd2 {[%clk 0:02:49]}  O-O {[%clk 0:01:52]} 14. Nf3 {[%clk 0:02:42]}  Nc6 {[%clk 0:01:38]} 15. d5 {[%clk 0:02:42]}  Rd8 {[%clk 0:01:37]} 16. Bd3 {[%clk 0:02:35]}  Nb4 {[%clk 0:01:26]} 17. Bb1 {[%clk 0:02:13]}  f5 {[%clk 0:01:24]} 18. Bc7 {[%clk 0:01:35]}  Rd7 {[%clk 0:01:17]} 19. d6 {[%clk 0:01:12]}  exd6 {[%clk 0:01:01]} 20. exf5 {[%clk 0:01:11]}  Nc6 {[%clk 0:01:00]} 21. Rxc6 {[%clk 0:01:01]}  bxc6 {[%clk 0:01:01]} 22. Ba5 {[%clk 0:01:02]}  Rb8 {[%clk 0:00:53]} 23. Bc2 {[%clk 0:01:00]}  Rf7 {[%clk 0:00:46]} 24. g4 {[%clk 0:00:59]}  d5 {[%clk 0:00:41]} 25. h4 {[%clk 0:00:55]}  Rb5 {[%clk 0:00:24]} 26. Bc3 {[%clk 0:00:40]}  d4 {[%clk 0:00:21]} 27. Ba1 {[%clk 0:00:28]}  gxh4 {[%clk 0:00:13]} 28. Bb3 {[%clk 0:00:26]}  Rxb3 {[%clk 0:00:06]} 29. axb3 {[%clk 0:00:27]}  c5 {[%clk 0:00:06]} 30. Nxh4 {[%clk 0:00:21]}  Bb7 {[%clk 0:00:06]} 31. Rc1 {[%clk 0:00:21]}  Bf6 {[%clk 0:00:05]} 32. Ng6 {[%clk 0:00:21]}  Bg5+ {[%clk 0:00:05]} 33. f4 {[%clk 0:00:21]}  Be7 {[%clk 0:00:04]} 34. Nxe7+ {[%clk 0:00:18]}  Rxe7 {[%clk 0:00:05]} 35. Rxc5 {[%clk 0:00:19]}  Bf3 {[%clk 0:00:04]} 36. g5 {[%clk 0:00:16]}  hxg5 {[%clk 0:00:03]} 37. fxg5 {[%clk 0:00:17]}  Bg4 {[%clk 0:00:01]} 38. Bxd4 {[%clk 0:00:16]}  Rd7 {[%clk 0:00:02]} 39. Ke3 {[%clk 0:00:16]}  Re7+ {[%clk 0:00:02]} 40. Kf4 {[%clk 0:00:16]}  Bh3 {[%clk 0:00:02]} 41. g6 {[%clk 0:00:16]}  Rd7 {[%clk 0:00:02]} 42. Rc8+ {[%clk 0:00:16]} 1-0


[Site "https://www.chess.com"]

[Event "Titled Tuesday Blitz April 11 Early 2023"]
[White "Bocharov, Dmitry"]
[Black "Liew, Chee-Meng Jimmy"]
[WhiteFideId "4138716"]
[BlackFideId "5700019"]
[WhiteElo "2469"]
[BlackElo "2245"]
[Result "1-0"]
[Round "02"]
[TimeControl "180+2"]
[Date "2023.04.11"]
[WhiteClock "0:01:18"]
[BlackClock "0:00:23"]

1. d4 {[%clk 0:03:00]}  Nf6 {[%clk 0:03:00]} 2. c4 {[%clk 0:03:00]}  e6 {[%clk 0:03:00]} 3. g3 {[%clk 0:02:59]}  Bb4+ {[%clk 0:02:56]} 4. Bd2 {[%clk 0:02:58]}  Bxd2+ {[%clk 0:02:55]} 5. Qxd2 {[%clk 0:02:58]}  O-O {[%clk 0:02:55]} 6. Bg2 {[%clk 0:02:57]}  d5 {[%clk 0:02:53]} 7. Nf3 {[%clk 0:02:56]}  c5 {[%clk 0:02:53]} 8. cxd5 {[%clk 0:02:53]}  exd5 {[%clk 0:02:41]} 9. dxc5 {[%clk 0:02:51]}  Ne4 {[%clk 0:02:42]} 10. Qc1 {[%clk 0:02:48]}  Qa5+ {[%clk 0:02:38]} 11. Nbd2 {[%clk 0:02:48]}  Nxc5 {[%clk 0:02:35]} 12. O-O {[%clk 0:02:47]}  Nc6 {[%clk 0:02:31]} 13. a3 {[%clk 0:02:45]}  Ne4 {[%clk 0:02:30]} 14. b4 {[%clk 0:02:42]}  Qb6 {[%clk 0:02:27]} 15. Nxe4 {[%clk 0:02:39]}  dxe4 {[%clk 0:02:28]} 16. Ng5 {[%clk 0:02:40]}  e3 {[%clk 0:02:18]} 17. Qxe3 {[%clk 0:02:38]}  Qxe3 {[%clk 0:02:17]} 18. fxe3 {[%clk 0:02:39]}  h6 {[%clk 0:02:18]} 19. Ne4 {[%clk 0:02:37]}  Re8 {[%clk 0:02:06]} 20. Rac1 {[%clk 0:02:30]}  Re7 {[%clk 0:01:57]} 21. Kf2 {[%clk 0:02:25]}  Bf5 {[%clk 0:01:52]} 22. Nd6 {[%clk 0:02:24]}  Bd7 {[%clk 0:01:38]} 23. Nxb7 {[%clk 0:02:18]}  Ne5 {[%clk 0:01:27]} 24. Nc5 {[%clk 0:02:07]}  Rae8 {[%clk 0:01:24]} 25. h3 {[%clk 0:02:00]}  Bb5 {[%clk 0:01:15]} 26. a4 {[%clk 0:01:57]}  Bc4 {[%clk 0:01:15]} 27. Rfd1 {[%clk 0:01:56]}  Rb8 {[%clk 0:01:11]} 28. b5 {[%clk 0:01:52]}  Rb6 {[%clk 0:01:09]} 29. Rd4 {[%clk 0:01:48]}  Rf6+ {[%clk 0:01:03]} 30. Rf4 {[%clk 0:01:47]}  Rc7 {[%clk 0:00:48]} 31. Rxf6 {[%clk 0:01:45]}  gxf6 {[%clk 0:00:49]} 32. Ne4 {[%clk 0:01:45]}  Kg7 {[%clk 0:00:43]} 33. Nd6 {[%clk 0:01:44]}  Kf8 {[%clk 0:00:39]} 34. a5 {[%clk 0:01:42]}  Ke7 {[%clk 0:00:37]} 35. b6 {[%clk 0:01:37]}  axb6 {[%clk 0:00:30]} 36. axb6 {[%clk 0:01:38]}  Kxd6 {[%clk 0:00:24]} 37. bxc7 {[%clk 0:01:37]}  Kxc7 {[%clk 0:00:25]} 38. Bd5 {[%clk 0:01:36]}  Kd6 {[%clk 0:00:22]} 39. Bxc4 {[%clk 0:01:35]}  f5 {[%clk 0:00:23]} 40. Bd3 {[%clk 0:01:33]}  f4 {[%clk 0:00:24]} 41. gxf4 {[%clk 0:01:32]}  Nd7 {[%clk 0:00:23]} 42. Kf3 {[%clk 0:01:28]}  f5 {[%clk 0:00:23]} 43. Bxf5 {[%clk 0:01:28]}  Nb8 {[%clk 0:00:20]} 44. e4 {[%clk 0:01:27]}  h5 {[%clk 0:00:20]} 45. e5+ {[%clk 0:01:26]}  Ke7 {[%clk 0:00:20]} 46. Rc7+ {[%clk 0:01:25]}  Kd8 {[%clk 0:00:20]} 47. Rc8+ {[%clk 0:01:25]}  Ke7 {[%clk 0:00:21]} 48. Rxb8 {[%clk 0:01:25]}  h4 {[%clk 0:00:22]} 49. Rb7+ {[%clk 0:01:26]}  Kd8 {[%clk 0:00:22]} 50. e6 {[%clk 0:01:24]}  Ke8 {[%clk 0:00:22]} 51. Rd7 {[%clk 0:01:23]}  Kf8 {[%clk 0:00:23]} 52. Kg4 {[%clk 0:01:17]}  Ke8 {[%clk 0:00:23]} 53. Kg5 {[%clk 0:01:17]}  Kf8 {[%clk 0:00:24]} 54. Kf6 {[%clk 0:01:17]}  Ke8 {[%clk 0:00:23]} 55. Bg6+ {[%clk 0:01:18]}  Kf8 {[%clk 0:00:23]} 56. Rd8# {[%clk 0:01:18]} 1-0


[Site "https://www.chess.com"]

[Event "Titled Tuesday Blitz April 11 Early 2023"]
[White "Javakhadze, Zurab"]
[Black "Balint, Vilmos"]
[WhiteFideId "13603647"]
[BlackFideId "718050"]
[WhiteElo "2381"]
[BlackElo "2034"]
[Result "1-0"]
[Round "02"]
[TimeControl "180+2"]
[Date "2023.04.11"]
[WhiteClock "0:01:29"]
[BlackClock "0:01:48"]

1. Nf3 {[%clk 0:02:56]}  b5 {[%clk 0:02:58]} 2. e3 {[%clk 0:02:44]}  a6 {[%clk 0:02:55]} 3. a4 {[%clk 0:02:40]}  b4 {[%clk 0:02:54]} 4. d4 {[%clk 0:02:31]}  Bb7 {[%clk 0:02:54]} 5. Bd3 {[%clk 0:02:31]}  e6 {[%clk 0:02:54]} 6. O-O {[%clk 0:02:32]}  Nf6 {[%clk 0:02:54]} 7. Nbd2 {[%clk 0:02:32]}  Be7 {[%clk 0:02:55]} 8. e4 {[%clk 0:02:32]}  d6 {[%clk 0:02:55]} 9. a5 {[%clk 0:02:30]}  Nbd7 {[%clk 0:02:54]} 10. c3 {[%clk 0:02:31]}  bxc3 {[%clk 0:02:54]} 11. bxc3 {[%clk 0:02:31]}  e5 {[%clk 0:02:49]} 12. Re1 {[%clk 0:02:27]}  O-O {[%clk 0:02:44]} 13. Nc4 {[%clk 0:02:27]}  exd4 {[%clk 0:02:34]} 14. cxd4 {[%clk 0:02:27]}  d5 {[%clk 0:02:32]} 15. exd5 {[%clk 0:02:27]}  Nxd5 {[%clk 0:02:30]} 16. Bd2 {[%clk 0:02:19]}  Bf6 {[%clk 0:02:25]} 17. Rb1 {[%clk 0:02:09]}  Rb8 {[%clk 0:02:19]} 18. Nfe5 {[%clk 0:02:09]}  Re8 {[%clk 0:02:11]} 19. Bxh7+ {[%clk 0:02:02]}  Kxh7 {[%clk 0:02:10]} 20. Qh5+ {[%clk 0:02:02]}  Kg8 {[%clk 0:02:10]} 21. Qxf7+ {[%clk 0:02:01]}  Kh7 {[%clk 0:02:11]} 22. Nxd7 {[%clk 0:01:50]}  Rxe1+ {[%clk 0:01:59]} 23. Rxe1 {[%clk 0:01:49]}  Rc8 {[%clk 0:01:53]} 24. Nce5 {[%clk 0:01:31]}  Ne7 {[%clk 0:01:48]} 25. Nxf6+ {[%clk 0:01:29]} 1-0


[Site "https://www.chess.com"]

[Event "Titled Tuesday Blitz April 11 Early 2023"]
[White "Bogaudinov, Rushan"]
[Black "Petrov, Martin"]
[WhiteFideId "4129288"]
[BlackFideId "2911086"]
[WhiteElo "1967"]
[BlackElo "2430"]
[Result "0-1"]
[Round "02"]
[TimeControl "180+2"]
[Date "2023.04.11"]
[WhiteClock "0:00:01"]
[BlackClock "0:00:03"]

1. e4 {[%clk 0:03:00]}  e5 {[%clk 0:02:59]} 2. Nc3 {[%clk 0:02:59]}  Nf6 {[%clk 0:02:55]} 3. g3 {[%clk 0:02:59]}  d5 {[%clk 0:02:38]} 4. exd5 {[%clk 0:02:58]}  Nxd5 {[%clk 0:02:39]} 5. Bg2 {[%clk 0:02:58]}  Nxc3 {[%clk 0:02:38]} 6. bxc3 {[%clk 0:02:58]}  Bc5 {[%clk 0:02:36]} 7. Nf3 {[%clk 0:02:57]}  Nc6 {[%clk 0:02:34]} 8. O-O {[%clk 0:02:55]}  O-O {[%clk 0:02:33]} 9. d3 {[%clk 0:02:55]}  Re8 {[%clk 0:02:26]} 10. Re1 {[%clk 0:02:52]}  Bg4 {[%clk 0:02:16]} 11. h3 {[%clk 0:02:52]}  Bh5 {[%clk 0:02:16]} 12. g4 {[%clk 0:02:52]}  Bg6 {[%clk 0:02:16]} 13. Rb1 {[%clk 0:02:52]}  Bb6 {[%clk 0:02:12]} 14. Nd2 {[%clk 0:02:32]}  Qh4 {[%clk 0:02:02]} 15. Qf3 {[%clk 0:02:28]}  Rad8 {[%clk 0:01:48]} 16. Nc4 {[%clk 0:02:21]}  e4 {[%clk 0:01:25]} 17. dxe4 {[%clk 0:02:12]}  Bxe4 {[%clk 0:01:16]} 18. Bg5 {[%clk 0:01:07]}  Qxg5 {[%clk 0:00:50]} 19. Rxe4 {[%clk 0:01:05]}  Rxe4 {[%clk 0:00:48]} 20. Qxe4 {[%clk 0:01:05]}  Qf6 {[%clk 0:00:47]} 21. Nxb6 {[%clk 0:00:59]}  axb6 {[%clk 0:00:47]} 22. Qe3 {[%clk 0:00:52]}  h6 {[%clk 0:00:46]} 23. Qg3 {[%clk 0:00:35]}  Qd6 {[%clk 0:00:37]} 24. Qxd6 {[%clk 0:00:31]}  Rxd6 {[%clk 0:00:38]} 25. Be4 {[%clk 0:00:25]}  Na5 {[%clk 0:00:32]} 26. Kf1 {[%clk 0:00:20]}  Kf8 {[%clk 0:00:32]} 27. Ke1 {[%clk 0:00:19]}  Re6 {[%clk 0:00:27]} 28. f3 {[%clk 0:00:18]}  Re5 {[%clk 0:00:28]} 29. Rb4 {[%clk 0:00:17]}  Rc5 {[%clk 0:00:27]} 30. Kd2 {[%clk 0:00:15]}  c6 {[%clk 0:00:24]} 31. Rd4 {[%clk 0:00:13]}  Ke7 {[%clk 0:00:23]} 32. Bd3 {[%clk 0:00:11]}  f6 {[%clk 0:00:14]} 33. f4 {[%clk 0:00:09]}  Rd5 {[%clk 0:00:12]} 34. Ke3 {[%clk 0:00:08]}  b5 {[%clk 0:00:10]} 35. Rxd5 {[%clk 0:00:06]}  cxd5 {[%clk 0:00:11]} 36. Bxb5 {[%clk 0:00:06]}  Kd6 {[%clk 0:00:12]} 37. Kd4 {[%clk 0:00:06]}  b6 {[%clk 0:00:10]} 38. c4 {[%clk 0:00:05]}  dxc4 {[%clk 0:00:10]} 39. Bxc4 {[%clk 0:00:06]}  Nc6+ {[%clk 0:00:11]} 40. Ke4 {[%clk 0:00:06]}  Ne7 {[%clk 0:00:09]} 41. a4 {[%clk 0:00:05]}  Kc5 {[%clk 0:00:07]} 42. Bb3 {[%clk 0:00:06]}  g6 {[%clk 0:00:04]} 43. h4 {[%clk 0:00:04]}  f5+ {[%clk 0:00:03]} 44. gxf5 {[%clk 0:00:03]}  gxf5+ {[%clk 0:00:04]} 45. Ke5 {[%clk 0:00:03]}  Ng6+ {[%clk 0:00:05]} 46. Kxf5 {[%clk 0:00:03]}  Nxh4+ {[%clk 0:00:06]} 47. Kg4 {[%clk 0:00:03]}  Ng2 {[%clk 0:00:05]} 48. f5 {[%clk 0:00:02]}  Ne3+ {[%clk 0:00:04]} 49. Kf4 {[%clk 0:00:02]}  Ng2+ {[%clk 0:00:03]} 50. Ke5 {[%clk 0:00:01]}  h5 {[%clk 0:00:02]} 51. f6 {[%clk 0:00:01]}  Nh4 {[%clk 0:00:03]} 0-1


[Site "https://www.chess.com"]

[Event "Titled Tuesday Blitz April 11 Early 2023"]
[White "Rodriguez Santiago, Jaime"]
[Black "Schmakel, Sam"]
[WhiteFideId "3100898"]
[BlackFideId "2039311"]
[WhiteElo "2025"]
[BlackElo "2356"]
[Result "0-1"]
[Round "02"]
[TimeControl "180+2"]
[Date "2023.04.11"]
[WhiteClock "0:00:02"]
[BlackClock "0:00:04"]

1. c4 {[%clk 0:03:00]}  e6 {[%clk 0:02:56]} 2. Nf3 {[%clk 0:02:59]}  b6 {[%clk 0:02:55]} 3. g3 {[%clk 0:02:56]}  Bb7 {[%clk 0:02:55]} 4. Bg2 {[%clk 0:02:56]}  c5 {[%clk 0:02:50]} 5. O-O {[%clk 0:02:55]}  Nf6 {[%clk 0:02:49]} 6. b3 {[%clk 0:02:55]}  Be7 {[%clk 0:02:49]} 7. Bb2 {[%clk 0:02:54]}  O-O {[%clk 0:02:50]} 8. e3 {[%clk 0:02:55]}  Nc6 {[%clk 0:02:49]} 9. Qe2 {[%clk 0:02:54]}  d5 {[%clk 0:02:49]} 10. d3 {[%clk 0:02:54]}  Qc7 {[%clk 0:02:32]} 11. Nc3 {[%clk 0:02:52]}  Rad8 {[%clk 0:02:30]} 12. Rad1 {[%clk 0:02:46]}  a6 {[%clk 0:02:25]} 13. a4 {[%clk 0:02:42]}  d4 {[%clk 0:02:12]} 14. exd4 {[%clk 0:02:38]}  Nxd4 {[%clk 0:02:07]} 15. Nxd4 {[%clk 0:02:37]}  cxd4 {[%clk 0:02:08]} 16. Ne4 {[%clk 0:02:34]}  e5 {[%clk 0:01:59]} 17. Nxf6+ {[%clk 0:02:14]}  Bxf6 {[%clk 0:02:00]} 18. Bxb7 {[%clk 0:02:10]}  Qxb7 {[%clk 0:02:01]} 19. Ba3 {[%clk 0:02:10]}  Rfe8 {[%clk 0:02:01]} 20. f3 {[%clk 0:02:04]}  b5 {[%clk 0:02:01]} 21. cxb5 {[%clk 0:01:54]}  axb5 {[%clk 0:02:02]} 22. Rb1 {[%clk 0:01:49]}  Qa6 {[%clk 0:01:51]} 23. Bc5 {[%clk 0:01:37]}  bxa4 {[%clk 0:01:48]} 24. b4 {[%clk 0:01:36]}  Qb5 {[%clk 0:01:42]} 25. Ra1 {[%clk 0:01:25]}  g6 {[%clk 0:01:27]} 26. Ra3 {[%clk 0:01:22]}  Re6 {[%clk 0:01:22]} 27. Rfa1 {[%clk 0:01:21]}  Ra6 {[%clk 0:01:22]} 28. Qc2 {[%clk 0:01:14]}  Rda8 {[%clk 0:01:21]} 29. Qc4 {[%clk 0:00:57]}  Qb7 {[%clk 0:01:21]} 30. b5 {[%clk 0:00:52]}  Ra5 {[%clk 0:01:19]} 31. Rb1 {[%clk 0:00:51]}  Rb8 {[%clk 0:00:59]} 32. Rxa4 {[%clk 0:00:38]}  Rxb5 {[%clk 0:00:58]} 33. Rxb5 {[%clk 0:00:33]}  Qxb5 {[%clk 0:00:59]} 34. Rb4 {[%clk 0:00:33]}  Qe8 {[%clk 0:00:59]} 35. Kg2 {[%clk 0:00:21]}  Rxb4 {[%clk 0:00:50]} 36. Bxb4 {[%clk 0:00:21]}  h5 {[%clk 0:00:49]} 37. Be1 {[%clk 0:00:21]}  Kg7 {[%clk 0:00:49]} 38. Bf2 {[%clk 0:00:22]}  Qa8 {[%clk 0:00:48]} 39. h4 {[%clk 0:00:21]}  Qa1 {[%clk 0:00:34]} 40. Qc7 {[%clk 0:00:18]}  Qd1 {[%clk 0:00:34]} 41. Qc4 {[%clk 0:00:16]}  Qe2 {[%clk 0:00:34]} 42. Qb5 {[%clk 0:00:13]}  Be7 {[%clk 0:00:32]} 43. Kg1 {[%clk 0:00:11]}  Bf6 {[%clk 0:00:16]} 44. Kg2 {[%clk 0:00:10]}  g5 {[%clk 0:00:15]} 45. hxg5 {[%clk 0:00:10]}  Bxg5 {[%clk 0:00:16]} 46. Kg1 {[%clk 0:00:09]}  f6 {[%clk 0:00:10]} 47. Qd7+ {[%clk 0:00:08]}  Kh6 {[%clk 0:00:10]} 48. f4 {[%clk 0:00:09]}  exf4 {[%clk 0:00:10]} 49. Qf7 {[%clk 0:00:09]}  fxg3 {[%clk 0:00:03]} 50. Qf8+ {[%clk 0:00:09]}  Kg6 {[%clk 0:00:03]} 51. Qg8+ {[%clk 0:00:09]}  Kf5 {[%clk 0:00:04]} 52. Qh7+ {[%clk 0:00:09]}  Kg4 {[%clk 0:00:04]} 53. Qd7+ {[%clk 0:00:09]}  f5 {[%clk 0:00:04]} 54. Qxd4+ {[%clk 0:00:07]}  Kh3 {[%clk 0:00:04]} 55. Bxg3 {[%clk 0:00:02]}  Be3+ {[%clk 0:00:04]} 56. Bf2 {[%clk 0:00:02]}  Qxf2+ {[%clk 0:00:04]} 0-1


[Site "https://www.chess.com"]